[Event "Titled Tuesday Blitz September 27 Early 2022"]
[White "Urazayev, Arystanbek"]
[Black "Jeet, Jain"]
[WhiteFideId "13709810"]
[BlackFideId "5073022"]
[WhiteElo "2789"]
[BlackElo "2619"]
[Result "1-0"]
[Round "05"]
[TimeControl "180+1"]
[Date "2022.09.27"]
[WhiteClock "0:00:56"]
[BlackClock "0:00:07"]

1. e4 {[%clk 0:03:00]}  d5 {[%clk 0:02:58]} 2. exd5 {[%clk 0:03:00]}  Qxd5 {[%clk 0:02:59]} 3. Nc3 {[%clk 0:03:00]}  Qd6 {[%clk 0:03:00]} 4. d4 {[%clk 0:03:00]}  Nf6 {[%clk 0:02:59]} 5. Nf3 {[%clk 0:03:01]}  a6 {[%clk 0:02:58]} 6. Ne5 {[%clk 0:03:01]}  Nc6 {[%clk 0:02:54]} 7. Bf4 {[%clk 0:03:00]}  Qxd4 {[%clk 0:02:48]} 8. Nxc6 {[%clk 0:02:51]}  Qxd1+ {[%clk 0:02:45]} 9. Rxd1 {[%clk 0:02:51]}  bxc6 {[%clk 0:02:45]} 10. Bxc7 {[%clk 0:02:52]}  Bf5 {[%clk 0:02:43]} 11. g4 {[%clk 0:02:29]}  Bxg4 {[%clk 0:02:41]} 12. Bg2 {[%clk 0:02:29]}  Bd7 {[%clk 0:02:37]} 13. Na4 {[%clk 0:02:23]}  Rc8 {[%clk 0:02:23]} 14. Bg3 {[%clk 0:02:20]}  e5 {[%clk 0:01:14]} 15. Bxe5 {[%clk 0:02:19]}  Bb4+ {[%clk 0:01:14]} 16. c3 {[%clk 0:02:17]}  Ba5 {[%clk 0:01:13]} 17. Nc5 {[%clk 0:01:52]}  Bf5 {[%clk 0:01:01]} 18. Nb7 {[%clk 0:01:47]}  O-O {[%clk 0:01:00]} 19. Nxa5 {[%clk 0:01:34]}  Rfe8 {[%clk 0:00:52]} 20. f4 {[%clk 0:01:34]}  Ng4 {[%clk 0:00:48]} 21. O-O {[%clk 0:01:34]}  Ne3 {[%clk 0:00:46]} 22. Nxc6 {[%clk 0:01:30]}  Nxf1 {[%clk 0:00:43]} 23. Kxf1 {[%clk 0:01:28]}  f6 {[%clk 0:00:42]} 24. Bd6 {[%clk 0:01:26]}  Kf7 {[%clk 0:00:28]} 25. Ne7 {[%clk 0:01:12]}  Rxe7 {[%clk 0:00:25]} 26. Bxe7 {[%clk 0:01:13]}  Kxe7 {[%clk 0:00:26]} 27. Kf2 {[%clk 0:01:12]}  Rb8 {[%clk 0:00:19]} 28. b3 {[%clk 0:01:09]}  a5 {[%clk 0:00:19]} 29. Rd5 {[%clk 0:01:08]}  Be6 {[%clk 0:00:14]} 30. Rxa5 {[%clk 0:01:09]}  Rd8 {[%clk 0:00:14]} 31. Ra7+ {[%clk 0:01:07]}  Kf8 {[%clk 0:00:15]} 32. Ke3 {[%clk 0:01:07]}  Rd1 {[%clk 0:00:14]} 33. b4 {[%clk 0:01:01]}  Rg1 {[%clk 0:00:14]} 34. Bf3 {[%clk 0:01:00]}  Re1+ {[%clk 0:00:14]} 35. Kf2 {[%clk 0:01:00]}  Rc1 {[%clk 0:00:14]} 36. b5 {[%clk 0:00:57]}  Rxc3 {[%clk 0:00:12]} 37. b6 {[%clk 0:00:56]}  Rc2+ {[%clk 0:00:11]} 38. Ke1 {[%clk 0:00:56]}  Rb2 {[%clk 0:00:08]} 39. Ra8+ {[%clk 0:00:56]}  Kf7 {[%clk 0:00:07]} 40. b7 {[%clk 0:00:56]} 1-0


[Site "https://www.chess.com"]

[Event "Titled Tuesday Blitz September 27 Early 2022"]
[White "Valle Maytin, Luis Enrique"]
[Black "Shashikant, Kutwal"]
[WhiteFideId "3503666"]
[BlackFideId "5006520"]
[WhiteElo "2225"]
[BlackElo "2321"]
[Result "0-1"]
[Round "05"]
[TimeControl "180+1"]
[Date "2022.09.27"]
[WhiteClock "0:00:12"]
[BlackClock "0:00:17"]

1. e4 {[%clk 0:02:28]}  c5 {[%clk 0:02:59]} 2. Nf3 {[%clk 0:02:28]}  d6 {[%clk 0:02:59]} 3. d4 {[%clk 0:02:29]}  cxd4 {[%clk 0:02:59]} 4. Nxd4 {[%clk 0:02:29]}  Nf6 {[%clk 0:03:00]} 5. Nc3 {[%clk 0:02:30]}  Nc6 {[%clk 0:03:01]} 6. Bg5 {[%clk 0:02:23]}  e6 {[%clk 0:02:58]} 7. f4 {[%clk 0:02:16]}  Be7 {[%clk 0:02:53]} 8. Qd2 {[%clk 0:02:15]}  h6 {[%clk 0:02:32]} 9. Bxf6 {[%clk 0:01:59]}  Bxf6 {[%clk 0:02:32]} 10. Nxc6 {[%clk 0:01:59]}  bxc6 {[%clk 0:02:31]} 11. O-O-O {[%clk 0:01:58]}  d5 {[%clk 0:02:14]} 12. exd5 {[%clk 0:01:55]}  cxd5 {[%clk 0:02:14]} 13. Bb5+ {[%clk 0:01:52]}  Bd7 {[%clk 0:02:13]} 14. Bxd7+ {[%clk 0:00:56]}  Qxd7 {[%clk 0:02:14]} 15. f5 {[%clk 0:00:56]}  O-O {[%clk 0:02:13]} 16. h4 {[%clk 0:00:51]}  Rfc8 {[%clk 0:02:09]} 17. fxe6 {[%clk 0:00:48]}  fxe6 {[%clk 0:02:09]} 18. Rh3 {[%clk 0:00:22]}  Rab8 {[%clk 0:02:04]} 19. Rf1 {[%clk 0:00:17]}  Qb7 {[%clk 0:01:44]} 20. Rxf6 {[%clk 0:00:09]}  gxf6 {[%clk 0:01:45]} 21. Rg3+ {[%clk 0:00:10]}  Kh7 {[%clk 0:01:43]} 22. Qd3+ {[%clk 0:00:10]}  f5 {[%clk 0:01:42]} 23. Qe3 {[%clk 0:00:09]}  Qxb2+ {[%clk 0:01:15]} 24. Kd1 {[%clk 0:00:09]}  Qb6 {[%clk 0:00:39]} 25. Qe5 {[%clk 0:00:08]}  Rg8 {[%clk 0:00:36]} 26. Ne2 {[%clk 0:00:02]}  Rxg3 {[%clk 0:00:20]} 27. Nxg3 {[%clk 0:00:02]}  Qg1+ {[%clk 0:00:19]} 28. Kd2 {[%clk 0:00:02]}  Qxg2+ {[%clk 0:00:18]} 29. Ne2 {[%clk 0:00:02]}  Re8 {[%clk 0:00:10]} 30. Qf6 {[%clk 0:00:02]}  Qg7 {[%clk 0:00:10]} 31. Qxg7+ {[%clk 0:00:02]}  Kxg7 {[%clk 0:00:10]} 32. Nf4 {[%clk 0:00:03]}  d4 {[%clk 0:00:09]} 33. Kd3 {[%clk 0:00:03]}  e5 {[%clk 0:00:09]} 34. Nh5+ {[%clk 0:00:03]}  Kg6 {[%clk 0:00:09]} 35. Ng3 {[%clk 0:00:04]}  Rd8 {[%clk 0:00:07]} 36. Ne2 {[%clk 0:00:03]}  e4+ {[%clk 0:00:07]} 37. Kd2 {[%clk 0:00:03]}  d3 {[%clk 0:00:07]} 38. Nf4+ {[%clk 0:00:03]}  Kf6 {[%clk 0:00:08]} 39. cxd3 {[%clk 0:00:03]}  exd3 {[%clk 0:00:09]} 40. Nxd3 {[%clk 0:00:03]}  f4 {[%clk 0:00:09]} 41. Ke2 {[%clk 0:00:03]}  Rxd3 {[%clk 0:00:09]} 42. Kxd3 {[%clk 0:00:03]}  Kf5 {[%clk 0:00:10]} 43. Ke2 {[%clk 0:00:03]}  Kg4 {[%clk 0:00:10]} 44. Kf2 {[%clk 0:00:04]}  Kxh4 {[%clk 0:00:11]} 45. Kf3 {[%clk 0:00:05]}  Kg5 {[%clk 0:00:11]} 46. a4 {[%clk 0:00:05]}  Kf5 {[%clk 0:00:11]} 47. a5 {[%clk 0:00:06]}  a6 {[%clk 0:00:12]} 48. Kf2 {[%clk 0:00:05]}  Kg4 {[%clk 0:00:13]} 49. Ke2 {[%clk 0:00:06]}  f3+ {[%clk 0:00:14]} 50. Kf2 {[%clk 0:00:07]}  Kf4 {[%clk 0:00:14]} 51. Kf1 {[%clk 0:00:08]}  Kg3 {[%clk 0:00:15]} 52. Ke1 {[%clk 0:00:09]}  f2+ {[%clk 0:00:15]} 53. Kf1 {[%clk 0:00:09]}  h5 {[%clk 0:00:15]} 54. Ke2 {[%clk 0:00:10]}  Kg2 {[%clk 0:00:16]} 55. Ke3 {[%clk 0:00:11]}  f1=Q {[%clk 0:00:17]} 56. Ke4 {[%clk 0:00:12]} 0-1


[Site "https://www.chess.com"]

[Event "Titled Tuesday Blitz September 27 Early 2022"]
[White "Vargas, Mauricio"]
[Black "Umarov, Sabir"]
[WhiteFideId "4404572"]
[BlackFideId "14200538"]
[WhiteElo "2004"]
[BlackElo "2355"]
[Result "0-1"]
[Round "05"]
[TimeControl "180+1"]
[Date "2022.09.27"]
[WhiteClock "0:00:12"]
[BlackClock "0:01:33"]

1. e4 {[%clk 0:01:49]}  g6 {[%clk 0:02:59]} 2. Nc3 {[%clk 0:01:49]}  Bg7 {[%clk 0:02:59]} 3. f4 {[%clk 0:01:50]}  c6 {[%clk 0:02:59]} 4. Nf3 {[%clk 0:01:49]}  d5 {[%clk 0:03:00]} 5. e5 {[%clk 0:01:49]}  f6 {[%clk 0:02:59]} 6. d3 {[%clk 0:01:49]}  Bg4 {[%clk 0:02:58]} 7. Be2 {[%clk 0:01:47]}  Bxf3 {[%clk 0:02:56]} 8. exf6 {[%clk 0:01:43]}  Nxf6 {[%clk 0:02:44]} 9. Bxf3 {[%clk 0:01:41]}  O-O {[%clk 0:02:45]} 10. O-O {[%clk 0:01:38]}  d4 {[%clk 0:02:41]} 11. Ne2 {[%clk 0:01:34]}  Nd5 {[%clk 0:02:40]} 12. Qe1 {[%clk 0:01:31]}  Ne3 {[%clk 0:02:31]} 13. Bxe3 {[%clk 0:01:30]}  dxe3 {[%clk 0:02:32]} 14. c3 {[%clk 0:01:25]}  Qxd3 {[%clk 0:02:30]} 15. Rd1 {[%clk 0:01:24]}  Qc2 {[%clk 0:02:25]} 16. Rb1 {[%clk 0:00:59]}  Na6 {[%clk 0:02:16]} 17. Nd4 {[%clk 0:00:51]}  Bxd4 {[%clk 0:02:07]} 18. cxd4 {[%clk 0:00:50]}  Qd2 {[%clk 0:01:42]} 19. Qh4 {[%clk 0:00:38]}  Qxd4 {[%clk 0:01:37]} 20. Qxe7 {[%clk 0:00:29]}  e2+ {[%clk 0:01:34]} 21. Rf2 {[%clk 0:00:12]}  Rae8 {[%clk 0:01:33]} 0-1


[Site "https://www.chess.com"]

[Event "Titled Tuesday Blitz September 27 Early 2022"]
[White "Winkels, Marcel"]
[Black "Zheenbekov, Nurgazy"]
[WhiteFideId "1003887"]
[BlackFideId "13800485"]
[WhiteElo "1900"]
[BlackElo "1932"]
[Result "0-1"]
[Round "05"]
[TimeControl "180+1"]
[Date "2022.09.27"]
[WhiteClock "0:00:03"]
[BlackClock "0:01:14"]

1. d4 {[%clk 0:00:44]}  Nf6 {[%clk 0:02:57]} 2. Nc3 {[%clk 0:00:42]}  d5 {[%clk 0:02:56]} 3. Bf4 {[%clk 0:00:43]}  e6 {[%clk 0:02:55]} 4. e3 {[%clk 0:00:43]}  a6 {[%clk 0:02:54]} 5. Qf3 {[%clk 0:00:41]}  Bd6 {[%clk 0:02:53]} 6. Qg3 {[%clk 0:00:36]}  Nh5 {[%clk 0:02:43]} 7. Qg4 {[%clk 0:00:36]}  Nxf4 {[%clk 0:02:40]} 8. exf4 {[%clk 0:00:35]}  Qf6 {[%clk 0:02:39]} 9. O-O-O {[%clk 0:00:27]}  Qxf4+ {[%clk 0:02:38]} 10. Qxf4 {[%clk 0:00:26]}  Bxf4+ {[%clk 0:02:38]} 11. Kb1 {[%clk 0:00:27]}  O-O {[%clk 0:02:36]} 12. g3 {[%clk 0:00:26]}  Bd6 {[%clk 0:02:36]} 13. f4 {[%clk 0:00:26]}  b5 {[%clk 0:02:33]} 14. Nf3 {[%clk 0:00:26]}  Bb7 {[%clk 0:02:32]} 15. Ne5 {[%clk 0:00:26]}  c5 {[%clk 0:02:31]} 16. dxc5 {[%clk 0:00:22]}  Bxc5 {[%clk 0:02:31]} 17. Bg2 {[%clk 0:00:18]}  Bd6 {[%clk 0:02:14]} 18. Rhe1 {[%clk 0:00:17]}  Bxe5 {[%clk 0:02:13]} 19. Rxe5 {[%clk 0:00:16]}  Nc6 {[%clk 0:02:14]} 20. Ree1 {[%clk 0:00:15]}  Rad8 {[%clk 0:02:13]} 21. Ne2 {[%clk 0:00:15]}  Rfe8 {[%clk 0:02:00]} 22. c3 {[%clk 0:00:14]}  f6 {[%clk 0:01:59]} 23. Nc1 {[%clk 0:00:12]}  Na5 {[%clk 0:01:50]} 24. Nd3 {[%clk 0:00:12]}  Nc4 {[%clk 0:01:44]} 25. Nc5 {[%clk 0:00:11]}  Bc8 {[%clk 0:01:44]} 26. f5 {[%clk 0:00:10]}  exf5 {[%clk 0:01:25]} 27. Rxe8+ {[%clk 0:00:08]}  Rxe8 {[%clk 0:01:25]} 28. Bxd5+ {[%clk 0:00:09]}  Kf8 {[%clk 0:01:25]} 29. b3 {[%clk 0:00:06]}  Ne3 {[%clk 0:01:23]} 30. Rd2 {[%clk 0:00:06]}  Rd8 {[%clk 0:01:14]} 31. c4 {[%clk 0:00:03]}  bxc4 {[%clk 0:01:14]} 0-1


[Site "https://www.chess.com"]

[Event "Titled Tuesday Blitz September 27 Early 2022"]
[White "Yilmaz, Mustafa"]
[Black "Tomaszewski, Kacper"]
[WhiteFideId "6302718"]
[BlackFideId "1127373"]
[WhiteElo "2568"]
[BlackElo "2133"]
[Result "0-1"]
[Round "05"]
[TimeControl "180+1"]
[Date "2022.09.27"]
[WhiteClock "0:00:02"]
[BlackClock "0:00:12"]

1. e4 {[%clk 0:03:00]}  c6 {[%clk 0:02:59]} 2. Nf3 {[%clk 0:03:01]}  d5 {[%clk 0:03:00]} 3. d3 {[%clk 0:03:01]}  dxe4 {[%clk 0:03:00]} 4. dxe4 {[%clk 0:03:02]}  Qxd1+ {[%clk 0:03:00]} 5. Kxd1 {[%clk 0:03:03]}  Nd7 {[%clk 0:03:01]} 6. Nfd2 {[%clk 0:03:01]}  f5 {[%clk 0:03:01]} 7. exf5 {[%clk 0:03:00]}  Ndf6 {[%clk 0:03:02]} 8. f3 {[%clk 0:02:54]}  Bxf5 {[%clk 0:03:01]} 9. Bd3 {[%clk 0:02:54]}  Bxd3 {[%clk 0:03:00]} 10. cxd3 {[%clk 0:02:55]}  O-O-O {[%clk 0:03:01]} 11. Ke2 {[%clk 0:02:55]}  Nd5 {[%clk 0:02:58]} 12. Ne4 {[%clk 0:02:54]}  Ngf6 {[%clk 0:02:58]} 13. Na3 {[%clk 0:02:42]}  e6 {[%clk 0:02:53]} 14. Nc4 {[%clk 0:02:31]}  Nb4 {[%clk 0:02:49]} 15. Ne5 {[%clk 0:02:21]}  Rg8 {[%clk 0:02:41]} 16. Rd1 {[%clk 0:01:49]}  Be7 {[%clk 0:02:31]} 17. Bd2 {[%clk 0:01:32]}  Nc2 {[%clk 0:02:30]} 18. Rac1 {[%clk 0:01:32]}  Nd4+ {[%clk 0:02:31]} 19. Kf1 {[%clk 0:01:30]}  Nd7 {[%clk 0:02:18]} 20. Nc4 {[%clk 0:01:21]}  Nf6 {[%clk 0:02:12]} 21. Be3 {[%clk 0:01:15]}  Kb8 {[%clk 0:01:47]} 22. Rc3 {[%clk 0:01:06]}  Nf5 {[%clk 0:01:43]} 23. Bf4+ {[%clk 0:01:05]}  Ka8 {[%clk 0:01:26]} 24. Rcc1 {[%clk 0:00:19]}  Nd5 {[%clk 0:01:25]} 25. Bd2 {[%clk 0:00:17]}  b5 {[%clk 0:01:25]} 26. Ne5 {[%clk 0:00:17]}  Nfe3+ {[%clk 0:01:22]} 27. Bxe3 {[%clk 0:00:18]}  Nxe3+ {[%clk 0:01:23]} 28. Ke2 {[%clk 0:00:18]}  Nxd1 {[%clk 0:01:23]} 29. Kxd1 {[%clk 0:00:12]}  Bf6 {[%clk 0:00:58]} 30. Nxc6 {[%clk 0:00:12]}  Rxd3+ {[%clk 0:00:57]} 31. Ke2 {[%clk 0:00:12]}  Rd7 {[%clk 0:00:52]} 32. Nc5 {[%clk 0:00:11]}  Rd6 {[%clk 0:00:47]} 33. Ne4 {[%clk 0:00:11]}  Rd7 {[%clk 0:00:43]} 34. Nc5 {[%clk 0:00:11]}  Rc7 {[%clk 0:00:38]} 35. Na6 {[%clk 0:00:10]}  Rcc8 {[%clk 0:00:21]} 36. Rc2 {[%clk 0:00:10]}  Kb7 {[%clk 0:00:17]} 37. Nab4 {[%clk 0:00:10]}  a5 {[%clk 0:00:17]} 38. Nxa5+ {[%clk 0:00:10]}  Kb6 {[%clk 0:00:17]} 39. Nac6 {[%clk 0:00:09]}  Rc7 {[%clk 0:00:13]} 40. b3 {[%clk 0:00:04]}  Rgc8 {[%clk 0:00:13]} 41. a4 {[%clk 0:00:04]}  Rxc6 {[%clk 0:00:12]} 42. a5+ {[%clk 0:00:04]}  Kb7 {[%clk 0:00:12]} 43. a6+ {[%clk 0:00:03]}  Kb6 {[%clk 0:00:12]} 44. Rxc6+ {[%clk 0:00:01]}  Rxc6 {[%clk 0:00:13]} 45. a7 {[%clk 0:00:02]}  Rc8 {[%clk 0:00:12]} 0-1


[Site "https://www.chess.com"]

[Event "Titled Tuesday Blitz September 27 Early 2022"]
[White "Zaichenko, Daria"]
[Black "Matt, Fabian"]
[WhiteFideId "4197453"]
[BlackFideId "1623303"]
[WhiteElo "2039"]
[BlackElo "2287"]
[Result "0-1"]
[Round "05"]
[TimeControl "180+1"]
[Date "2022.09.27"]
[WhiteClock "0:00:01"]
[BlackClock "0:00:04"]

1. e4 {[%clk 0:02:55]}  c6 {[%clk 0:02:58]} 2. d4 {[%clk 0:02:54]}  d5 {[%clk 0:02:58]} 3. Nd2 {[%clk 0:02:55]}  dxe4 {[%clk 0:02:58]} 4. Nxe4 {[%clk 0:02:55]}  Bf5 {[%clk 0:02:59]} 5. Ng3 {[%clk 0:02:55]}  Bg6 {[%clk 0:02:59]} 6. h4 {[%clk 0:02:55]}  h6 {[%clk 0:02:59]} 7. h5 {[%clk 0:02:56]}  Bh7 {[%clk 0:02:59]} 8. Nf3 {[%clk 0:02:56]}  Nd7 {[%clk 0:02:59]} 9. Bd3 {[%clk 0:02:56]}  Bxd3 {[%clk 0:02:58]} 10. Qxd3 {[%clk 0:02:56]}  Ngf6 {[%clk 0:02:59]} 11. Bd2 {[%clk 0:02:55]}  e6 {[%clk 0:02:58]} 12. O-O-O {[%clk 0:02:55]}  Qc7 {[%clk 0:02:58]} 13. Ne4 {[%clk 0:02:55]}  O-O-O {[%clk 0:02:55]} 14. Kb1 {[%clk 0:02:54]}  Nxe4 {[%clk 0:02:46]} 15. Qxe4 {[%clk 0:02:54]}  Bd6 {[%clk 0:02:47]} 16. c4 {[%clk 0:02:51]}  Nf6 {[%clk 0:02:40]} 17. Qc2 {[%clk 0:02:48]}  Bf4 {[%clk 0:02:39]} 18. Bc3 {[%clk 0:02:39]}  Kb8 {[%clk 0:02:21]} 19. g3 {[%clk 0:02:38]}  Bd6 {[%clk 0:02:19]} 20. c5 {[%clk 0:02:38]}  Be7 {[%clk 0:02:14]} 21. Ne5 {[%clk 0:02:38]}  Rhf8 {[%clk 0:02:13]} 22. Qa4 {[%clk 0:02:37]}  Nd5 {[%clk 0:02:06]} 23. Ba5 {[%clk 0:02:36]}  Qc8 {[%clk 0:01:43]} 24. Bxd8 {[%clk 0:02:35]}  Rxd8 {[%clk 0:01:44]} 25. Rd3 {[%clk 0:02:34]}  Bf6 {[%clk 0:01:38]} 26. Ra3 {[%clk 0:02:31]}  a6 {[%clk 0:01:37]} 27. Nc4 {[%clk 0:02:29]}  Qc7 {[%clk 0:01:14]} 28. Rb3 {[%clk 0:02:22]}  Bxd4 {[%clk 0:01:06]} 29. Nd6 {[%clk 0:02:16]}  Bxc5 {[%clk 0:00:48]} 30. Rxb7+ {[%clk 0:02:13]}  Qxb7 {[%clk 0:00:48]} 31. Nxb7 {[%clk 0:02:13]}  Kxb7 {[%clk 0:00:48]} 32. Rc1 {[%clk 0:02:12]}  Bb6 {[%clk 0:00:43]} 33. Qxc6+ {[%clk 0:02:10]}  Ka7 {[%clk 0:00:44]} 34. a4 {[%clk 0:02:03]}  a5 {[%clk 0:00:42]} 35. Qb5 {[%clk 0:01:58]}  Nb4 {[%clk 0:00:37]} 36. Qe5 {[%clk 0:01:48]}  Rd2 {[%clk 0:00:29]} 37. Rc7+ {[%clk 0:01:16]}  Ka8 {[%clk 0:00:04]} 38. Rc8+ {[%clk 0:00:44]}  Kb7 {[%clk 0:00:04]} 39. Qb8+ {[%clk 0:00:44]}  Ka6 {[%clk 0:00:05]} 40. Qa8+ {[%clk 0:00:41]}  Ba7 {[%clk 0:00:06]} 41. Rc6+ {[%clk 0:00:23]}  Nxc6 {[%clk 0:00:06]} 42. Qxc6+ {[%clk 0:00:22]}  Bb6 {[%clk 0:00:07]} 43. b4 {[%clk 0:00:17]}  axb4 {[%clk 0:00:04]} 44. Qb5+ {[%clk 0:00:17]}  Ka7 {[%clk 0:00:05]} 45. a5 {[%clk 0:00:17]}  Bd4 {[%clk 0:00:05]} 46. Kc1 {[%clk 0:00:13]}  Rxf2 {[%clk 0:00:04]} 47. Qxb4 {[%clk 0:00:13]}  Rf1+ {[%clk 0:00:04]} 48. Kc2 {[%clk 0:00:13]}  Rf2+ {[%clk 0:00:04]} 49. Kd3 {[%clk 0:00:13]}  e5 {[%clk 0:00:05]} 50. Qb5 {[%clk 0:00:10]}  Rf3+ {[%clk 0:00:05]} 51. Ke4 {[%clk 0:00:10]}  Re3+ {[%clk 0:00:05]} 52. Kd5 {[%clk 0:00:10]}  Rc3 {[%clk 0:00:06]} 53. Qd7+ {[%clk 0:00:06]}  Ka6 {[%clk 0:00:06]} 54. Qd8 {[%clk 0:00:07]}  Rc5+ {[%clk 0:00:05]} 55. Ke4 {[%clk 0:00:07]}  Rxa5 {[%clk 0:00:06]} 56. Qd6+ {[%clk 0:00:07]}  Kb5 {[%clk 0:00:06]} 57. Qd5+ {[%clk 0:00:07]}  Ka4 {[%clk 0:00:07]} 58. Qxf7 {[%clk 0:00:08]}  Rb5 {[%clk 0:00:06]} 59. Qa2+ {[%clk 0:00:07]}  Kb4 {[%clk 0:00:06]} 60. Qd2+ {[%clk 0:00:07]}  Kc5 {[%clk 0:00:06]} 61. Qc2+ {[%clk 0:00:07]}  Kd6 {[%clk 0:00:07]} 62. Qc4 {[%clk 0:00:07]}  Rc5 {[%clk 0:00:06]} 63. Qf7 {[%clk 0:00:07]}  Rc7 {[%clk 0:00:06]} 64. Qf8+ {[%clk 0:00:07]}  Ke6 {[%clk 0:00:06]} 65. Qf5+ {[%clk 0:00:06]}  Kd6 {[%clk 0:00:06]} 66. Qg6+ {[%clk 0:00:05]}  Kc5 {[%clk 0:00:05]} 67. Qa6 {[%clk 0:00:05]}  Rc6 {[%clk 0:00:03]} 68. Qa5+ {[%clk 0:00:04]}  Kd6 {[%clk 0:00:04]} 69. Qd5+ {[%clk 0:00:03]}  Kc7 {[%clk 0:00:03]} 70. Qf7+ {[%clk 0:00:03]}  Kb6 {[%clk 0:00:03]} 71. Qxg7 {[%clk 0:00:03]}  Rd6 {[%clk 0:00:04]} 72. Qe7 {[%clk 0:00:01]}  Rc6 {[%clk 0:00:04]} 0-1


[Site "https://www.chess.com"]

[Event "Titled Tuesday Blitz September 27 Early 2022"]
[White "Zenin, Dmitry"]
[Black "Rostomyan, Mikayel"]
[WhiteFideId "4127897"]
[BlackFideId "13313754"]
[WhiteElo "2215"]
[BlackElo "1426"]
[Result "1-0"]
[Round "05"]
[TimeControl "180+1"]
[Date "2022.09.27"]
[WhiteClock "0:00:21"]
[BlackClock "0:00:04"]

1. d4 {[%clk 0:03:00]}  Nf6 {[%clk 0:02:59]} 2. c4 {[%clk 0:02:58]}  c5 {[%clk 0:02:55]} 3. d5 {[%clk 0:02:58]}  b5 {[%clk 0:02:52]} 4. cxb5 {[%clk 0:02:57]}  a6 {[%clk 0:02:50]} 5. bxa6 {[%clk 0:02:57]}  e6 {[%clk 0:02:49]} 6. Nc3 {[%clk 0:02:54]}  exd5 {[%clk 0:02:49]} 7. Nxd5 {[%clk 0:02:54]}  Nxa6 {[%clk 0:02:49]} 8. e4 {[%clk 0:02:50]}  Nxd5 {[%clk 0:02:46]} 9. exd5 {[%clk 0:02:45]}  Nb4 {[%clk 0:02:47]} 10. Bc4 {[%clk 0:02:26]}  Qe7+ {[%clk 0:02:26]} 11. Ne2 {[%clk 0:02:24]}  Qe4 {[%clk 0:02:23]} 12. Bb3 {[%clk 0:02:13]}  Qxg2 {[%clk 0:01:57]} 13. Rg1 {[%clk 0:02:11]}  Qe4 {[%clk 0:01:54]} 14. Rg3 {[%clk 0:01:32]}  Be7 {[%clk 0:01:36]} 15. d6 {[%clk 0:01:25]}  c4 {[%clk 0:01:27]} 16. Re3 {[%clk 0:01:08]}  Qh1+ {[%clk 0:00:58]} 17. Kd2 {[%clk 0:01:07]}  Qxd1+ {[%clk 0:00:56]} 18. Bxd1 {[%clk 0:01:05]}  Nd5 {[%clk 0:00:44]} 19. dxe7 {[%clk 0:01:00]}  Nxe3 {[%clk 0:00:44]} 20. Kxe3 {[%clk 0:01:00]}  Kxe7 {[%clk 0:00:42]} 21. Bd2 {[%clk 0:00:57]}  d5 {[%clk 0:00:40]} 22. Bb4+ {[%clk 0:00:55]}  Kd7 {[%clk 0:00:34]} 23. Nd4 {[%clk 0:00:55]}  Re8+ {[%clk 0:00:33]} 24. Kd2 {[%clk 0:00:55]}  Kc7 {[%clk 0:00:27]} 25. Bf3 {[%clk 0:00:52]}  Be6 {[%clk 0:00:25]} 26. a3 {[%clk 0:00:50]}  Kb6 {[%clk 0:00:23]} 27. Rg1 {[%clk 0:00:48]}  g6 {[%clk 0:00:23]} 28. h4 {[%clk 0:00:41]}  Rad8 {[%clk 0:00:19]} 29. h5 {[%clk 0:00:40]}  Bc8 {[%clk 0:00:17]} 30. Rg5 {[%clk 0:00:37]}  Bb7 {[%clk 0:00:16]} 31. h6 {[%clk 0:00:34]}  f6 {[%clk 0:00:16]} 32. Rg1 {[%clk 0:00:33]}  Re5 {[%clk 0:00:14]} 33. Bc3 {[%clk 0:00:30]}  Rg5 {[%clk 0:00:11]} 34. Rxg5 {[%clk 0:00:27]}  fxg5 {[%clk 0:00:12]} 35. Ne6 {[%clk 0:00:27]}  Rd6 {[%clk 0:00:09]} 36. Nxg5 {[%clk 0:00:27]}  d4 {[%clk 0:00:09]} 37. Bb4 {[%clk 0:00:26]}  Rd7 {[%clk 0:00:05]} 38. Bxb7 {[%clk 0:00:23]}  Kxb7 {[%clk 0:00:06]} 39. Bf8 {[%clk 0:00:22]}  Kc6 {[%clk 0:00:06]} 40. Bg7 {[%clk 0:00:22]}  Kb5 {[%clk 0:00:05]} 41. Nxh7 {[%clk 0:00:22]}  Ka4 {[%clk 0:00:05]} 42. Nf6 {[%clk 0:00:22]}  Kb3 {[%clk 0:00:06]} 43. Nxd7 {[%clk 0:00:21]}  Kxb2 {[%clk 0:00:04]} 44. Bxd4+ {[%clk 0:00:21]}  Kxa3 {[%clk 0:00:04]} 45. h7 {[%clk 0:00:21]} 1-0


[Site "https://www.chess.com"]

[Event "Titled Tuesday Blitz September 27 Early 2022"]
[White "Abdisalimov, Abdimalik"]
[Black "Moksh Amit Doshi"]
[WhiteFideId "14206323"]
[BlackFideId "25064967"]
[WhiteElo "2401"]
[BlackElo "2245"]
[Result "1-0"]
[Round "06"]
[TimeControl "180+1"]
[Date "2022.09.27"]
[WhiteClock "0:00:34"]
[BlackClock "0:00:02"]

1. d4 {[%clk 0:03:00]}  Nf6 {[%clk 0:02:48]} 2. c4 {[%clk 0:02:59]}  e6 {[%clk 0:02:48]} 3. Nc3 {[%clk 0:02:59]}  Bb4 {[%clk 0:02:48]} 4. e3 {[%clk 0:03:00]}  O-O {[%clk 0:02:48]} 5. Bd3 {[%clk 0:02:59]}  d5 {[%clk 0:02:48]} 6. Ne2 {[%clk 0:03:00]}  dxc4 {[%clk 0:02:45]} 7. Bxc4 {[%clk 0:03:01]}  c5 {[%clk 0:02:46]} 8. a3 {[%clk 0:03:01]}  cxd4 {[%clk 0:02:40]} 9. exd4 {[%clk 0:02:52]}  Be7 {[%clk 0:02:33]} 10. O-O {[%clk 0:02:52]}  Nc6 {[%clk 0:02:33]} 11. Qd3 {[%clk 0:02:53]}  b6 {[%clk 0:02:25]} 12. Rd1 {[%clk 0:02:52]}  Bb7 {[%clk 0:02:23]} 13. Bg5 {[%clk 0:02:51]}  h6 {[%clk 0:02:20]} 14. Bh4 {[%clk 0:02:51]}  Nd5 {[%clk 0:01:56]} 15. Bg3 {[%clk 0:02:49]}  Bf6 {[%clk 0:01:37]} 16. Ne4 {[%clk 0:02:49]}  Nce7 {[%clk 0:01:23]} 17. Rac1 {[%clk 0:02:47]}  Nf5 {[%clk 0:01:22]} 18. Ba2 {[%clk 0:02:38]}  Nxg3 {[%clk 0:01:20]} 19. hxg3 {[%clk 0:02:35]}  Be7 {[%clk 0:01:20]} 20. Bb1 {[%clk 0:02:30]}  f5 {[%clk 0:01:18]} 21. Nd2 {[%clk 0:02:29]}  Rc8 {[%clk 0:01:18]} 22. Nf3 {[%clk 0:02:28]}  Bf6 {[%clk 0:01:16]} 23. Re1 {[%clk 0:02:15]}  Qd6 {[%clk 0:01:13]} 24. Rcd1 {[%clk 0:02:14]}  Rfe8 {[%clk 0:01:09]} 25. Ba2 {[%clk 0:02:08]}  Kh8 {[%clk 0:01:08]} 26. Qd2 {[%clk 0:01:51]}  Rc7 {[%clk 0:00:59]} 27. Nc1 {[%clk 0:01:44]}  Rce7 {[%clk 0:00:53]} 28. Nd3 {[%clk 0:01:43]}  Kh7 {[%clk 0:00:29]} 29. Nfe5 {[%clk 0:01:43]}  Bxe5 {[%clk 0:00:30]} 30. dxe5 {[%clk 0:01:36]}  Qd8 {[%clk 0:00:29]} 31. Bb3 {[%clk 0:01:31]}  b5 {[%clk 0:00:19]} 32. Nc5 {[%clk 0:01:31]}  Qb6 {[%clk 0:00:17]} 33. Nxb7 {[%clk 0:01:30]}  Qxb7 {[%clk 0:00:18]} 34. Bxd5 {[%clk 0:01:31]}  exd5 {[%clk 0:00:19]} 35. Qxd5 {[%clk 0:01:32]}  Qxd5 {[%clk 0:00:19]} 36. Rxd5 {[%clk 0:01:32]}  a6 {[%clk 0:00:20]} 37. f4 {[%clk 0:01:28]}  Re6 {[%clk 0:00:19]} 38. Rc1 {[%clk 0:01:27]}  Rb8 {[%clk 0:00:19]} 39. Rc7 {[%clk 0:01:23]}  b4 {[%clk 0:00:19]} 40. a4 {[%clk 0:01:22]}  b3 {[%clk 0:00:18]} 41. Rd4 {[%clk 0:01:19]}  a5 {[%clk 0:00:18]} 42. Kf2 {[%clk 0:01:18]}  h5 {[%clk 0:00:16]} 43. Rdd7 {[%clk 0:00:59]}  Rg6 {[%clk 0:00:14]} 44. Rc4 {[%clk 0:01:00]}  Rbb6 {[%clk 0:00:12]} 45. Rd5 {[%clk 0:00:56]}  Rg4 {[%clk 0:00:11]} 46. Rd6 {[%clk 0:00:52]}  Rb8 {[%clk 0:00:11]} 47. Kf3 {[%clk 0:00:41]}  Rb7 {[%clk 0:00:09]} 48. Rd5 {[%clk 0:00:39]}  Rb8 {[%clk 0:00:07]} 49. e6 {[%clk 0:00:34]}  Re8 {[%clk 0:00:02]} 50. Rxf5 {[%clk 0:00:34]} 1-0


[Site "https://www.chess.com"]